fUSD/lending_fUSD_20260513
["ID","MTS","AMOUNT","RATE_DAILY","PERIOD"]
[422142332,1778617842000,-151.0,0.00016438,2]
[422142372,1778617842000,-150.0,0.00016696,2]
[422142310,1778617842000,-189.052952,0.00016438,2]
[422142306,1778617842000,-155.0,0.00016318,2]
[422142307,1778617842000,-736.0,0.00016385,2]
[422142309,1778617842000,-367.56472386,0.00016438,2]
[422142315,1778617842000,-1154.057842,0.00016438,2]
[422142320,1778617842000,-1154.057842,0.00016438,2]
[422142317,1778617842000,-1154.057842,0.00016438,2]
[422142312,1778617842000,-1154.057842,0.00016438,2]
[422142322,1778617842000,-1154.057842,0.00016438,2]
[422142313,1778617842000,-1154.057842,0.00016438,2]
[422142314,1778617842000,-1154.057842,0.00016438,2]
[422142331,1778617842000,-151.0,0.00016438,2]
[422142311,1778617842000,-1154.057842,0.00016438,2]
[422142316,1778617842000,-1154.057842,0.00016438,2]
[422142319,1778617842000,-1154.057842,0.00016438,2]
[422142321,1778617842000,-1154.057842,0.00016438,2]
[422142324,1778617842000,-1154.057842,0.00016438,2]
[422142323,1778617842000,-1154.057842,0.00016438,2]
[422142325,1778617842000,-1154.057842,0.00016438,2]
[422142333,1778617842000,-151.0,0.00016438,2]
[422142329,1778617842000,-151.0,0.00016438,2]
[422142326,1778617842000,-1154.057842,0.00016438,2]
[422142330,1778617842000,-151.0,0.00016438,2]
[422142327,1778617842000,-570.12,0.00016438,2]
[422142328,1778617842000,-151.0,0.00016438,2]
[422142318,1778617842000,-1154.057842,0.00016438,2]
[422142363,1778617842000,-151.0,0.00016563,2]
[422142361,1778617842000,-151.0,0.00016563,2]
[422142421,1778617842000,-1538.0,0.00018971,2]
[422142407,1778617842000,-297.94099151,0.000182,2]
[422142408,1778617842000,-2236.95670848,0.00018209,2]
[422142396,1778617842000,-500.0,0.00017808,2]
[422142398,1778617842000,-1237.39950744,0.0001789,2]
[422142399,1778617842000,-1205.66112139,0.00018,2]
[422142401,1778617842000,-297.94099151,0.00018,2]
[422142402,1778617842000,-350.0,0.00018,2]
[422142400,1778617842000,-1044.07566109,0.00018,2]
[422142404,1778617842000,-153.0,0.0001802,2]
[422142405,1778617842000,-237.60589375,0.0001802,2]
[422142406,1778617842000,-167.29,0.00018181,2]
[422142410,1778617842000,-297.94099151,0.000184,2]
[422142409,1778617842000,-158.0,0.0001829,2]
[422142420,1778617842000,-1538.0,0.00018971,2]
[422142411,1778617842000,-297.94099151,0.000185,2]
[422142412,1778617842000,-4609.0,0.00018581,2]
[422142414,1778617842000,-297.94099151,0.000187,2]
[422142416,1778617842000,-157.6032615,0.00018776,2]
[422142415,1778617842000,-2319.72410669,0.00018757,2]
[422142413,1778617842000,-500.0,0.00018603,2]
[422142418,1778617842000,-250.68,0.00018805,2]
[422142419,1778617842000,-250.68,0.0001895,2]
[422142417,1778617842000,-250.68,0.00018798,2]
[422142423,1778617842000,-1535.0,0.00018971,2]
[422142425,1778617842000,-513.32921307,0.00019,2]
[422142370,1778617842000,-150.0,0.00016696,2]
[422142427,1778617842000,-393.00895841,0.00019,2]
[422142397,1778617842000,-2000.0,0.00017876,2]
[422142391,1778617842000,-320.47,0.00017225,2]
[422142403,1778617842000,-665.64,0.00018,2]
[422142388,1778617842000,-2080.17592889,0.00017113,2]
[422142390,1778617842000,-680.35,0.00017209,2]
[422142371,1778617842000,-219.0,0.00016696,2]
[422142364,1778617842000,-2005.9555727,0.00016565,2]
[422142367,1778617842000,-1223.0,0.00016627,2]
[422142369,1778617842000,-6050.0,0.00016627,2]
[422142366,1778617842000,-1269.0,0.00016627,2]
[422142368,1778617842000,-926.0,0.00016627,2]
[422142374,1778617842000,-150.0,0.00016696,2]
[422142373,1778617842000,-200.0,0.00016696,2]
[422142375,1778617842000,-150.432,0.00016696,2]
[422142376,1778617842000,-150.565,0.00016696,2]
[422142377,1778617842000,-150.0,0.00016696,2]
[422142379,1778617842000,-250.0,0.00016696,2]
[422142381,1778617842000,-184.49,0.00016712,2]
[422142365,1778617842000,-150.919,0.00016627,2]
[422142380,1778617842000,-243.653,0.00016696,2]
[422142378,1778617842000,-165.61,0.00016696,2]
[422142394,1778617842000,-2157.14243826,0.00017661,2]
[422142385,1778617842000,-308.0,0.000171,2]
[422142392,1778617842000,-158.0,0.0001729,2]
[422142386,1778617842000,-1000.0,0.000171,2]
[422142389,1778617842000,-167.29,0.00017171,2]
[422142382,1778617842000,-181.69,0.00016767,2]
[422142387,1778617842000,-628.0,0.000171,2]
[422142395,1778617842000,-1252.0,0.00017792,2]
[422142384,1778617842000,-761.89,0.000171,2]
[422142393,1778617842000,-191.04,0.0001763,2]
[422142383,1778617842000,-3292.0,0.00016892,2]
[422142477,1778617843000,-151.0,0.00019178,2]
[422142470,1778617843000,-500.0,0.00019178,2]
[422142473,1778617843000,-500.0,0.00019178,2]
[422142464,1778617843000,-500.0,0.00019178,2]
[422142467,1778617843000,-500.0,0.00019178,2]
[422142478,1778617843000,-151.0,0.00019178,2]
[422142471,1778617843000,-500.0,0.00019178,2]
[422142476,1778617843000,-2036.65,0.00019178,2]
[422142475,1778617843000,-500.0,0.00019178,2]
[422142468,1778617843000,-500.0,0.00019178,2]
[422142474,1778617843000,-500.0,0.00019178,2]
[422142469,1778617843000,-500.0,0.00019178,2]
[422142472,1778617843000,-500.0,0.00019178,2]
[422142481,1778617843000,-151.0,0.00019178,2]
[422142480,1778617843000,-151.0,0.00019178,2]
[422142482,1778617843000,-151.0,0.00019178,2]
[422142490,1778617843000,-151.0,0.00019178,2]
[422142484,1778617843000,-151.0,0.00019178,2]
[422142483,1778617843000,-151.0,0.00019178,2]
[422142485,1778617843000,-151.0,0.00019178,2]
[422142488,1778617843000,-151.0,0.00019178,2]
[422142489,1778617843000,-151.0,0.00019178,2]
[422142487,1778617843000,-151.0,0.00019178,2]
[422142486,1778617843000,-151.0,0.00019178,2]
[422142491,1778617843000,-151.0,0.00019178,2]
[422142465,1778617843000,-500.0,0.00019178,2]
[422142479,1778617843000,-151.0,0.00019178,2]
[422142459,1778617843000,-500.0,0.00019178,2]
[422142492,1778617843000,-237.291037,0.00019178,2]
[422142462,1778617843000,-500.0,0.00019178,2]
[422142432,1778617843000,-3000.0,0.00019178,2]
[422142433,1778617843000,-500.0,0.00019178,2]
[422142434,1778617843000,-500.0,0.00019178,2]
[422142435,1778617843000,-500.0,0.00019178,2]
[422142431,1778617843000,-264.0,0.00019178,2]
[422142428,1778617843000,-155.0,0.00019037,2]
[422142430,1778617843000,-451.23,0.00019066,2]
[422142437,1778617843000,-500.0,0.00019178,2]
[422142448,1778617843000,-500.0,0.00019178,2]
[422142436,1778617843000,-500.0,0.00019178,2]
[422142440,1778617843000,-500.0,0.00019178,2]
[422142450,1778617843000,-500.0,0.00019178,2]
[422142461,1778617843000,-500.0,0.00019178,2]
[422142444,1778617843000,-500.0,0.00019178,2]
[422142453,1778617843000,-500.0,0.00019178,2]
[422142442,1778617843000,-500.0,0.00019178,2]
[422142441,1778617843000,-500.0,0.00019178,2]
[422142439,1778617843000,-500.0,0.00019178,2]
[422142446,1778617843000,-500.0,0.00019178,2]
[422142454,1778617843000,-500.0,0.00019178,2]
[422142456,1778617843000,-500.0,0.00019178,2]
[422142458,1778617843000,-500.0,0.00019178,2]
[422142457,1778617843000,-500.0,0.00019178,2]
[422142466,1778617843000,-500.0,0.00019178,2]
[422142460,1778617843000,-500.0,0.00019178,2]
[422142463,1778617843000,-500.0,0.00019178,2]
[422142438,1778617843000,-500.0,0.00019178,2]
[422142493,1778617843000,-158.0,0.0001929,2]
[422142554,1778617843000,-4961.46,0.00020548,2]
[422142494,1778617843000,-2405.55389864,0.00019305,2]
[422142527,1778617843000,-150.0,0.0002,10]
[422142539,1778617843000,-4961.46,0.00020548,2]
[422142538,1778617843000,-264.0,0.00020547,2]
[422142537,1778617843000,-528.649166,0.00020547,2]
[422142540,1778617843000,-4961.46,0.00020548,2]
[422142529,1778617843000,-174.0,0.0002,2]
[422142528,1778617843000,-178.0,0.0002,2]
[422142531,1778617843000,-510.0,0.0002,2]
[422142536,1778617843000,-3940.0,0.00020439,2]
[422142535,1778617843000,-158.0,0.0002029,2]
[422142533,1778617843000,-1177.0,0.0002,2]
[422142552,1778617843000,-4961.46,0.00020548,2]
[422142526,1778617843000,-400.0,0.0002,2]
[422142542,1778617843000,-4961.46,0.00020548,2]
[422142545,1778617843000,-4961.46,0.00020548,2]
[422142541,1778617843000,-4961.46,0.00020548,2]
[422142543,1778617843000,-4961.46,0.00020548,2]
[422142546,1778617843000,-4961.46,0.00020548,2]
[422142550,1778617843000,-4961.46,0.00020548,2]
[422142551,1778617843000,-4961.46,0.00020548,2]
[422142547,1778617843000,-4961.46,0.00020548,2]
[422142548,1778617843000,-4961.46,0.00020548,2]
[422142549,1778617843000,-4961.46,0.00020548,2]
[422142553,1778617843000,-4961.46,0.00020548,2]
[422142555,1778617843000,-4961.46,0.00020548,2]
[422142495,1778617843000,-2129.0,0.00019327,2]
[422142544,1778617843000,-4961.46,0.00020548,2]
[422142523,1778617843000,-330.0,0.0002,2]
[422142534,1778617843000,-1251.0,0.0002,2]
[422142521,1778617843000,-175.0,0.0002,2]
[422142515,1778617843000,-4416.93,0.00019968,2]
[422142497,1778617843000,-451.23,0.00019555,2]
[422142498,1778617843000,-150.0,0.00019627,2]
[422142500,1778617843000,-1223.0,0.00019627,2]
[422142499,1778617843000,-1269.0,0.00019627,2]
[422142501,1778617843000,-450.536,0.00019627,2]
[422142502,1778617843000,-6050.0,0.00019627,2]
[422142503,1778617843000,-451.23,0.00019643,2]
[422142505,1778617843000,-150.0,0.00019696,2]
[422142506,1778617843000,-150.0,0.00019696,2]
[422142504,1778617843000,-150.0,0.00019696,2]
[422142509,1778617843000,-150.0,0.00019696,2]
[422142510,1778617843000,-150.0,0.00019696,2]
[422142496,1778617843000,-582.09911173,0.00019467,2]
[422142511,1778617843000,-150.0,0.00019696,2]
[422142507,1778617843000,-150.0,0.00019696,2]
[422142519,1778617843000,-200.0,0.0002,2]
[422142520,1778617843000,-13079.28491403,0.0002,2]
[422142525,1778617843000,-240.0,0.0002,2]
[422142518,1778617843000,-882.0,0.0002,2]
[422142516,1778617843000,-202.5,0.00019968,2]
[422142513,1778617843000,-541.3,0.00019968,2]
[422142522,1778617843000,-154.0,0.0002,2]
[422142514,1778617843000,-2254.66,0.00019968,2]
[422142508,1778617843000,-150.0,0.00019696,2]
[422142512,1778617843000,-1675.94929789,0.00019853,2]
[422142524,1778617843000,-174.0,0.0002,2]
[422142603,1778617844000,-510.0,0.00021,2]
[422142597,1778617844000,-154.0,0.00021,2]
[422142595,1778617844000,-2475.0,0.0002099,2]
[422142586,1778617844000,-1154.057842,0.00020548,2]
[422142596,1778617844000,-175.0,0.00021,2]
[422142585,1778617844000,-448.648593,0.00020548,2]
[422142587,1778617844000,-1154.057842,0.00020548,2]
[422142590,1778617844000,-151.0,0.00020548,2]
[422142589,1778617844000,-1154.05784648,0.00020548,2]
[422142591,1778617844000,-151.0,0.00020548,2]
[422142592,1778617844000,-150.0,0.0002058,2]
[422142593,1778617844000,-665.64,0.000208,2]
[422142594,1778617844000,-905.86,0.00020833,2]
[422142605,1778617844000,-181.69,0.00021205,2]
[422142599,1778617844000,-174.0,0.00021,2]
[422142601,1778617844000,-178.0,0.00021,2]
[422142598,1778617844000,-330.0,0.00021,2]
[422142602,1778617844000,-174.0,0.00021,2]
[422142606,1778617844000,-750.0,0.00021264,2]
[422142604,1778617844000,-1251.0,0.00021,2]
[422142608,1778617844000,-168.0,0.0002129,2]
[422142607,1778617844000,-150.0,0.00021264,7]
[422142609,1778617844000,-571.46520302,0.0002151,16]
[422142611,1778617844000,-1372.19974112,0.0002151,16]
[422142612,1778617844000,-1234.9405563,0.0002151,16]
[422142581,1778617844000,-465.742717,0.00020548,2]
[422142600,1778617844000,-240.0,0.00021,2]
[422142588,1778617844000,-1154.057842,0.00020548,2]
[422142556,1778617844000,-4961.46,0.00020548,2]
[422142583,1778617844000,-448.648598,0.00020548,2]
[422142565,1778617844000,-4961.46,0.00020548,2]
[422142564,1778617844000,-4961.46,0.00020548,2]
[422142557,1778617844000,-4961.46,0.00020548,2]
[422142560,1778617844000,-4961.46,0.00020548,2]
[422142559,1778617844000,-4961.46,0.00020548,2]
[422142562,1778617844000,-4961.46,0.00020548,2]
[422142558,1778617844000,-4961.46,0.00020548,2]
[422142561,1778617844000,-4961.46,0.00020548,2]
[422142613,1778617844000,-1420.0026457,0.0002151,16]
[422142563,1778617844000,-4961.46,0.00020548,2]
[422142567,1778617844000,-4961.46,0.00020548,2]
[422142578,1778617844000,-465.742719,0.00020548,2]
[422142584,1778617844000,-448.648598,0.00020548,2]
[422142577,1778617844000,-151.0,0.00020548,2]
[422142566,1778617844000,-4961.46,0.00020548,2]
[422142574,1778617844000,-4961.46,0.00020548,2]
[422142570,1778617844000,-4961.46,0.00020548,2]
[422142575,1778617844000,-151.0,0.00020548,2]
[422142568,1778617844000,-4961.46,0.00020548,2]
[422142572,1778617844000,-4961.46,0.00020548,2]
[422142573,1778617844000,-4961.46,0.00020548,2]
[422142576,1778617844000,-151.0,0.00020548,2]
[422142571,1778617844000,-4961.46,0.00020548,2]
[422142569,1778617844000,-4961.46,0.00020548,2]
[422142580,1778617844000,-465.742719,0.00020548,2]
[422142582,1778617844000,-448.648598,0.00020548,2]
[422142579,1778617844000,-465.742719,0.00020548,2]
[422142610,1778617844000,-1514.40635386,0.0002151,16]
[422142662,1778617844000,-330.0,0.00024,2]
[422142614,1778617844000,-504.0,0.00021562,2]
[422142651,1778617844000,-154.0,0.00023,2]
[422142650,1778617844000,-175.0,0.00023,2]
[422142648,1778617844000,-309.0,0.00022939,2]
[422142653,1778617844000,-174.0,0.00023,2]
[422142647,1778617844000,-582.09911173,0.0002285,2]
[422142654,1778617844000,-240.0,0.00023,2]
[422142649,1778617844000,-803.8514923,0.00023,2]
[422142655,1778617844000,-178.0,0.00023,2]
[422142652,1778617844000,-330.0,0.00023,2]
[422142646,1778617844000,-530.40334042,0.0002271,2]
[422142656,1778617844000,-174.0,0.00023,2]
[422142657,1778617844000,-510.0,0.00023,2]
[422142645,1778617844000,-150.0,0.00022696,2]
[422142660,1778617844000,-175.0,0.00024,2]
[422142663,1778617844000,-174.0,0.00024,2]
[422142659,1778617844000,-284.0,0.00023233,2]
[422142665,1778617844000,-500.0,0.00024,2]
[422142670,1778617844000,-260.0,0.00024134,2]
[422142669,1778617844000,-1251.0,0.00024,2]
[422142664,1778617844000,-240.0,0.00024,2]
[422142667,1778617844000,-174.0,0.00024,2]
[422142666,1778617844000,-178.0,0.00024,2]
[422142668,1778617844000,-510.0,0.00024,2]
[422142672,1778617844000,-200.0,0.0002414,2]
[422142671,1778617844000,-287.0,0.00024134,2]
[422142615,1778617844000,-5000.0,0.00021918,2]
[422142661,1778617844000,-154.0,0.00024,2]
[422142643,1778617844000,-150.0,0.00022696,2]
[422142658,1778617844000,-1251.0,0.00023,2]
[422142641,1778617844000,-150.0,0.00022696,2]
[422142638,1778617844000,-6050.0,0.00022627,2]
[422142616,1778617844000,-258.495888,0.00021918,2]
[422142619,1778617844000,-175.0,0.00022,2]
[422142617,1778617844000,-160.0,0.00022,2]
[422142618,1778617844000,-300.0,0.00022,2]
[422142621,1778617844000,-330.0,0.00022,2]
[422142620,1778617844000,-154.0,0.00022,2]
[422142622,1778617844000,-174.0,0.00022,2]
[422142631,1778617844000,-865.52,0.00022466,2]
[422142625,1778617844000,-178.0,0.00022,2]
[422142624,1778617844000,-450.0,0.00022,2]
[422142626,1778617844000,-174.0,0.00022,2]
[422142627,1778617844000,-510.0,0.00022,2]
[422142632,1778617844000,-621.72,0.00022466,2]
[422142642,1778617844000,-150.0,0.00022696,2]
[422142640,1778617844000,-150.0,0.00022696,2]
[422142628,1778617844000,-1251.0,0.00022,2]
[422142637,1778617844000,-1221.103,0.00022627,2]
[422142644,1778617844000,-150.0,0.00022696,2]
[422142636,1778617844000,-1269.0,0.00022627,2]
[422142634,1778617844000,-905.25,0.00022466,2]
[422142633,1778617844000,-1276.01,0.00022466,2]
[422142635,1778617844000,-3654.09347375,0.000226,2]
[422142630,1778617844000,-160.24,0.00022392,2]
[422142629,1778617844000,-243.48705081,0.0002211,2]
[422142623,1778617844000,-240.0,0.00022,2]
[422142639,1778617844000,-905.86,0.00022693,2]
[422142720,1778617845000,-157.60326151,0.00025303,2]
[422142715,1778617845000,-187.0,0.00025,2]
[422142721,1778617845000,-152.0,0.00025335,2]
[422142710,1778617845000,-187.0,0.00025,2]
[422142712,1778617845000,-330.0,0.00025,2]
[422142706,1778617845000,-317.0,0.00024847,2]
[422142713,1778617845000,-175.0,0.00025,2]
[422142709,1778617845000,-4424.19967203,0.00025,2]
[422142702,1778617845000,-246.240007,0.00024658,2]
[422142703,1778617845000,-178.58,0.00024658,2]
[422142714,1778617845000,-253.12706642,0.00025,2]
[422142711,1778617845000,-164.0,0.00025,2]
[422142717,1778617845000,-521.5438603,0.00025,2]
[422142724,1778617845000,-1267.0,0.00025627,2]
[422142719,1778617845000,-300.0,0.000251,7]
[422142718,1778617845000,-1262.60901248,0.00025,2]
[422142723,1778617845000,-11175.64755268,0.000255,2]
[422142733,1778617845000,-150.0,0.00026337,2]
[422142734,1778617845000,-199.0,0.00026337,2]
[422142727,1778617845000,-150.0,0.00025696,2]
[422142726,1778617845000,-181.69,0.00025644,2]
[422142732,1778617845000,-150.0,0.00026337,2]
[422142728,1778617845000,-150.0,0.00025696,2]
[422142722,1778617845000,-373.71812305,0.00025466,2]
[422142731,1778617845000,-582.09911173,0.00026233,2]
[422142725,1778617845000,-6050.0,0.00025627,2]
[422142701,1778617845000,-151.0,0.00024658,2]
[422142716,1778617845000,-176.0,0.00025,2]
[422142704,1778617845000,-1000.0,0.00024658,2]
[422142674,1778617845000,-200.0,0.0002414,2]
[422142705,1778617845000,-665.64,0.000247,7]
[422142682,1778617845000,-1152.13058206,0.0002421,2]
[422142729,1778617845000,-28344.07854826,0.0002589,5]
[422142675,1778617845000,-200.0,0.0002414,2]
[422142679,1778617845000,-200.0,0.0002414,2]
[422142678,1778617845000,-200.0,0.0002414,2]
[422142673,1778617845000,-200.0,0.0002414,2]
[422142676,1778617845000,-200.0,0.0002414,2]
[422142681,1778617845000,-198.0,0.0002414,2]
[422142680,1778617845000,-200.0,0.0002414,2]
[422142677,1778617845000,-200.0,0.0002414,2]
[422142694,1778617845000,-151.0,0.00024658,2]
[422142685,1778617845000,-155.0,0.00024476,2]
[422142695,1778617845000,-151.0,0.00024658,2]
[422142707,1778617845000,-152.0,0.00024869,2]
[422142683,1778617845000,-267.40471335,0.00024386,2]
[422142691,1778617845000,-252.0,0.00024557,2]
[422142686,1778617845000,-905.86,0.00024553,2]
[422142688,1778617845000,-150.0,0.00024557,2]
[422142693,1778617845000,-151.0,0.00024658,2]
[422142690,1778617845000,-150.0,0.00024557,2]
[422142687,1778617845000,-562.86777387,0.00024557,2]
[422142689,1778617845000,-150.0,0.00024557,2]
[422142696,1778617845000,-151.0,0.00024658,2]
[422142697,1778617845000,-151.0,0.00024658,2]
[422142700,1778617845000,-151.0,0.00024658,2]
[422142698,1778617845000,-151.0,0.00024658,2]
[422142699,1778617845000,-151.0,0.00024658,2]
[422142708,1778617845000,-998.11480699,0.00025,2]
[422142692,1778617845000,-297.0,0.0002461,2]
[422142730,1778617845000,-550.0,0.00026,2]
[422142684,1778617845000,-500.0,0.00024456,2]
[422142737,1778617845000,-150.0,0.00026441,2]
[422142770,1778617845000,-500.0,0.00027397,2]
[422142769,1778617845000,-500.0,0.00027397,2]
[422142767,1778617845000,-500.0,0.00027397,2]
[422142772,1778617845000,-500.0,0.00027397,2]
[422142773,1778617845000,-500.0,0.00027397,2]
[422142776,1778617845000,-500.0,0.00027397,2]
[422142775,1778617845000,-150.0,0.00027397,2]
[422142777,1778617845000,-500.0,0.00027397,2]
[422142779,1778617845000,-385.64242803,0.00027397,2]
[422142784,1778617845000,-327.548371,0.00027397,2]
[422142785,1778617845000,-327.548371,0.00027397,2]
[422142778,1778617845000,-500.0,0.00027397,2]
[422142781,1778617845000,-327.548371,0.00027397,2]
[422142768,1778617845000,-500.0,0.00027397,2]
[422142780,1778617845000,-200.0,0.00027397,2]
[422142782,1778617845000,-327.548371,0.00027397,2]
[422142786,1778617845000,-327.548371,0.00027397,2]
[422142796,1778617845000,-327.548371,0.00027397,2]
[422142797,1778617845000,-327.548371,0.00027397,2]
[422142787,1778617845000,-327.548371,0.00027397,2]
[422142788,1778617845000,-327.548371,0.00027397,2]
[422142791,1778617845000,-327.548371,0.00027397,2]
[422142790,1778617845000,-327.548371,0.00027397,2]
[422142793,1778617845000,-327.548371,0.00027397,2]
[422142789,1778617845000,-327.548371,0.00027397,2]
[422142794,1778617845000,-327.548371,0.00027397,2]
[422142795,1778617845000,-327.548371,0.00027397,2]
[422142735,1778617845000,-905.86,0.00026414,7]
[422142783,1778617845000,-327.548371,0.00027397,2]
[422142771,1778617845000,-500.0,0.00027397,2]
[422142792,1778617845000,-327.548371,0.00027397,2]
[422142766,1778617845000,-500.0,0.00027397,2]
[422142765,1778617845000,-500.0,0.00027397,2]
[422142738,1778617845000,-150.0,0.00026441,2]
[422142746,1778617845000,-250.0,0.00026848,2]
[422142741,1778617845000,-150.0,0.00026441,2]
[422142742,1778617845000,-150.0,0.00026441,2]
[422142739,1778617845000,-150.0,0.00026441,2]
[422142744,1778617845000,-1652.16506095,0.00026506,28]
[422142740,1778617845000,-150.0,0.00026441,2]
[422142745,1778617845000,-250.0,0.00026848,2]
[422142743,1778617845000,-223.0,0.00026441,2]
[422142748,1778617845000,-250.0,0.00026848,2]
[422142760,1778617845000,-12533.207791,0.00026971,2]
[422142759,1778617845000,-5382.516647,0.00026971,2]
[422142762,1778617845000,-151.0,0.00027171,7]
[422142736,1778617845000,-150.0,0.00026441,2]
[422142747,1778617845000,-250.0,0.00026848,2]
[422142761,1778617845000,-175.0,0.00027,2]
[422142774,1778617845000,-500.0,0.00027397,2]
[422142764,1778617845000,-500.0,0.00027397,2]
[422142753,1778617845000,-290.0,0.00026848,2]
[422142750,1778617845000,-250.0,0.00026848,2]
[422142752,1778617845000,-250.0,0.00026848,2]
[422142757,1778617845000,-2206.528171,0.00026971,2]
[422142756,1778617845000,-7104.2900125,0.00026971,2]
[422142749,1778617845000,-250.0,0.00026848,2]
[422142755,1778617845000,-13325.5828653,0.00026971,2]
[422142754,1778617845000,-151.0,0.00026968,7]
[422142751,1778617845000,-250.0,0.00026848,2]
[422142763,1778617845000,-500.0,0.00027397,2]
[422142832,1778617846000,-151.0,0.00027397,2]
[422142831,1778617846000,-151.0,0.00027397,2]
[422142836,1778617846000,-151.0,0.00027397,2]
[422142837,1778617846000,-151.0,0.00027397,2]
[422142835,1778617846000,-151.0,0.00027397,2]
[422142833,1778617846000,-151.0,0.00027397,2]
[422142830,1778617846000,-151.0,0.00027397,2]
[422142834,1778617846000,-151.0,0.00027397,2]
[422142838,1778617846000,-151.0,0.00027397,2]
[422142828,1778617846000,-300.0,0.00027397,2]
[422142839,1778617846000,-232.063881,0.00027397,2]
[422142840,1778617846000,-7863.13,0.00027397,10]
[422142850,1778617846000,-500.0,0.00027424,2]
[422142842,1778617846000,-171.02,0.000274,7]
[422142843,1778617846000,-2390.49,0.000274,14]
[422142851,1778617846000,-500.0,0.00027424,2]
[422142849,1778617846000,-500.0,0.00027424,2]
[422142844,1778617846000,-500.0,0.00027424,2]
[422142846,1778617846000,-500.0,0.00027424,2]
[422142847,1778617846000,-500.0,0.00027424,2]
[422142845,1778617846000,-500.0,0.00027424,2]
[422142848,1778617846000,-500.0,0.00027424,2]
[422142853,1778617846000,-392.0,0.00027424,2]
[422142829,1778617846000,-151.0,0.00027397,2]
[422142852,1778617846000,-500.0,0.00027424,2]
[422142841,1778617846000,-12276.96,0.00027397,10]
[422142826,1778617846000,-151.0,0.00027397,2]
[422142809,1778617846000,-151.0,0.00027397,2]
[422142824,1778617846000,-151.0,0.00027397,2]
[422142854,1778617846000,-665.64,0.000276,7]
[422142799,1778617846000,-327.548371,0.00027397,2]
[422142801,1778617846000,-327.548362,0.00027397,2]
[422142802,1778617846000,-151.0,0.00027397,2]
[422142800,1778617846000,-327.548371,0.00027397,2]
[422142804,1778617846000,-151.0,0.00027397,2]
[422142803,1778617846000,-151.0,0.00027397,2]
[422142805,1778617846000,-151.0,0.00027397,2]
[422142807,1778617846000,-151.0,0.00027397,2]
[422142806,1778617846000,-151.0,0.00027397,2]
[422142815,1778617846000,-151.0,0.00027397,2]
[422142816,1778617846000,-151.0,0.00027397,2]
[422142827,1778617846000,-230.697101,0.00027397,2]
[422142814,1778617846000,-208.839071,0.00027397,2]
[422142810,1778617846000,-151.0,0.00027397,2]
[422142812,1778617846000,-151.0,0.00027397,2]
[422142808,1778617846000,-151.0,0.00027397,2]
[422142811,1778617846000,-151.0,0.00027397,2]
[422142817,1778617846000,-151.0,0.00027397,2]
[422142818,1778617846000,-151.0,0.00027397,2]
[422142819,1778617846000,-151.0,0.00027397,2]
[422142821,1778617846000,-299.632183,0.00027397,2]
[422142822,1778617846000,-151.0,0.00027397,2]